bitfinex/quotes_SOLUSD_20251103
["timestamp","ask_amount","ask_price","bid_price","bid_amount"]
[1762164682322,11.58,175.63,175.61,5.69432567]
[1762164682523,11.58,175.63,175.61,0.14216157]
[1762164682723,0.7,175.7,175.63,0.14216157]
[1762164683022,11.58,175.69,175.64,1.79482386]
[1762164683433,4.77641384,175.74,175.66,1.79482386]
[1762164683434,0.7,175.73,175.66,1.79482386]
[1762164683735,15.82009323,175.72,175.66,1.93698543]
[1762164683932,8.05633723,175.71,175.66,0.83216157]
[1762164684131,4.24009323,175.7,175.66,0.83216157]
[1762164684322,4.24009323,175.7,175.66,6.52485522]
[1762164684723,17.27118829,175.72,175.66,5.83485522]
[1762164684938,0.7,175.7,175.66,5.83485522]
[1762164685519,4.23966535,175.71,175.66,6.52485522]
[1762164685720,4.93966535,175.71,175.66,6.52485522]
[1762164686345,8.75585252,175.71,175.66,6.52485522]
[1762164686530,4.51618717,175.71,175.66,6.52485522]
[1762164686731,10.20739077,175.71,175.66,6.52485522]
[1762164687037,4.93011263,175.7,175.64,5.69325815]
[1762164687239,4.24011263,175.69,175.65,0.85216157]
[1762164687428,11.58,175.68,175.65,2.64698543]
[1762164687826,11.58,175.68,175.66,0.71]
[1762164688436,11.58,175.68,175.66,6.40255582]
[1762164688629,0.69,175.7,175.65,5.83527466]
[1762164688829,12.27,175.69,175.65,5.83527466]
[1762164689145,11.58,175.69,175.65,5.83527466]
[1762164689447,12.27,175.69,175.65,5.83527466]
[1762164689840,12.27,175.69,175.65,6.54527466]
[1762164690047,11.58,175.69,175.65,6.54527466]
[1762164691341,11.58,175.69,175.65,8.34009852]
[1762164692130,4.24831718,175.68,175.65,8.34009852]
[1762164692533,4.24831718,175.68,175.66,0.71]
[1762164692938,4.24831718,175.68,175.65,7.63009852]
[1762164693134,11.58,175.69,175.65,7.63009852]
[1762164693342,4.2520982,175.68,175.65,7.63009852]
[1762164693655,12.27,175.69,175.65,7.63009852]
[1762164693846,4.252099,175.68,175.65,7.63009852]
[1762164694034,12.27,175.69,175.65,8.34009852]
[1762164694241,4.25397572,175.68,175.66,0.71]
[1762164694424,4.25397572,175.67,175.66,0.85216157]
[1762164694828,11.58,175.69,175.66,0.85216157]
[1762164695047,4.25410642,175.68,175.66,2.64698543]
[1762164695237,11.58,175.67,175.66,2.64698543]
[1762164695438,11.58,175.67,175.66,1.93698543]
[1762164695950,11.58,175.67,175.66,2.64698543]
[1762164696148,15.8367453,175.67,175.66,2.64698543]
[1762164696351,15.8367453,175.67,175.66,6.54497723]
[1762164696549,11.58,175.67,175.66,6.54497723]
[1762164697155,11.58,175.67,175.66,5.83497723]
[1762164697456,11.58,175.67,175.66,6.54497723]
[1762164699557,11.58,175.67,175.66,8.33980109]
[1762164701251,61.68087976,175.72,175.67,0.14216157]
[1762164701451,15.81810724,175.71,175.67,0.14216157]
[1762164701758,4.25810724,175.7,175.67,5.8344803]
[1762164701961,4.25810724,175.69,175.67,5.8344803]
[1762164702154,11.56,175.7,175.67,5.8344803]
[1762164702336,4.25790266,175.69,175.67,5.8344803]
[1762164702541,11.56,175.7,175.67,5.8344803]
[1762164702743,4.25790469,175.69,175.67,5.8344803]
[1762164703039,4.25797799,175.68,175.67,6.5444803]
[1762164703446,4.25797799,175.68,175.67,8.33930416]
[1762164703741,15.81797799,175.68,175.67,5.8344803]
[1762164704442,15.81797799,175.68,175.67,0.14216157]
[1762164704948,15.81797799,175.68,175.67,5.83465317]
[1762164706360,15.81797799,175.68,175.67,5.6924916]
[1762164706665,16.50797799,175.68,175.63,2.50482386]
[1762164706954,16.50797799,175.68,175.59,14.23695482]
[1762164706955,8.09055663,175.67,175.64,1.79482386]
[1762164707135,8.09055663,175.66,175.64,2.50482386]
[1762164707336,11.58,175.65,175.64,1.79482386]
[1762164707963,11.58,175.65,175.64,2.50482386]
[1762164708457,11.58,175.65,175.64,8.19828776]
[1762164708858,11.58,175.65,175.64,8.34044933]
[1762164709044,5.69157535,175.7,175.64,8.34044933]
[1762164709246,19.67055718,175.69,175.66,1.79482386]
[1762164709561,8.09059253,175.68,175.65,1.79482386]
[1762164709736,8.09059253,175.67,175.65,1.79482386]
[1762164709942,4.25811304,175.66,175.65,1.93698543]
[1762164710163,4.25811304,175.66,175.65,7.63012519]
[1762164712764,4.25811304,175.66,175.65,8.34012519]
[1762164712962,4.25811304,175.66,175.64,7.48820595]
[1762164713262,11.58,175.65,175.64,6.54554366]
[1762164713583,15.83861323,175.65,175.63,7.48856852]
[1762164713763,11.58,175.65,175.62,7.48893347]
[1762164713946,12.27,175.65,175.62,7.48893347]
[1762164714457,11.58,175.65,175.62,7.48893347]
[1762164715065,11.58,175.65,175.62,8.19893347]
[1762164715963,11.58,175.65,175.6,20.73416157]
[1762164716163,8.78184354,175.64,175.6,0.14216157]
[1762164716362,8.09200268,175.63,175.58,5.69516935]
[1762164716565,0.65,175.63,175.58,5.69516935]
[1762164716756,0.65,175.62,175.58,5.69516935]
[1762164716950,11.58,175.61,175.58,8.15999321]
[1762164717856,11.58,175.61,175.6,1.79482386]
[1762164718262,11.58,175.61,175.6,2.46482386]
[1762164719270,11.58,175.61,175.6,1.79482386]
[1762164720771,11.58,175.61,175.59,1.79482386]
[1762164721094,11.58,175.61,175.57,0.2]
[1762164721095,8.74419572,175.6,175.57,0.2]
[1762164721370,4.25979511,175.59,175.57,0.2]
[1762164721542,11.56,175.58,175.57,0.2]
[1762164722971,11.56,175.58,175.57,5.89573389]
[1762164723161,55.3,175.63,175.58,0.14216157]
[1762164723368,15.81856807,175.62,175.58,0.81216157]
[1762164723673,11.56,175.61,175.59,5.69508514]
[1762164723847,55.3,175.63,175.59,5.69508514]
[1762164724158,5.6928883,175.66,175.6,0.67]
[1762164724159,11.58,175.62,175.6,0.67]
[1762164724469,11.56,175.61,175.6,0.14216157]
[1762164724968,11.56,175.61,175.6,2.60698543]
[1762164725349,11.56,175.61,175.6,0.81216157]
[1762164725550,0.65,175.66,175.61,5.8365981]
[1762164725771,19.66828241,175.65,175.61,5.8365981]
[1762164725945,19.66828241,175.64,175.61,6.5065981]
[1762164726142,11.58,175.64,175.61,6.5065981]
[1762164726366,11.58,175.64,175.62,0.67]
[1762164726958,55.95,175.69,175.63,1.93698543]
[1762164727153,19.66777412,175.68,175.65,0.14216157]
[1762164727363,8.08777412,175.67,175.65,0.14216157]
[1762164727672,4.77641384,175.72,175.66,1.79482386]
[1762164727970,19.66572519,175.71,175.68,1.79482386]
[1762164728162,4.25566576,175.7,175.69,2.60698543]
[1762164728359,11.58,175.7,175.69,3.61337591]
[1762164729264,11.58,175.7,175.69,9.30521949]
[1762164729452,11.58,175.7,175.69,23.53482846]
[1762164730072,11.58,175.7,175.65,0.67]
[1762164730252,8.73238421,175.69,175.65,0.67]
[1762164730456,8.08238421,175.68,175.65,0.67]
[1762164730668,12.23,175.7,175.66,0.14216157]
[1762164730868,8.08346548,175.69,175.66,0.14216157]
[1762164731172,8.08346548,175.68,175.66,0.14216157]
[1762164731468,0.65,175.69,175.66,5.8348716]
[1762164731672,4.25430202,175.68,175.66,5.8348716]
[1762164731862,11.58,175.7,175.66,5.8348716]
[1762164732057,8.0831824,175.69,175.66,6.5048716]
[1762164732265,11.58,175.68,175.67,0.81216157]
[1762164732462,11.58,175.68,175.67,0.14216157]
[1762164732660,0.65,175.72,175.67,0.14216157]
[1762164732982,20.31275877,175.71,175.67,0.14216157]
[1762164733184,8.08275877,175.7,175.67,0.14216157]
[1762164733367,8.08275877,175.69,175.67,5.83439126]
[1762164733566,11.58,175.68,175.67,5.83439126]
[1762164736666,11.58,175.68,175.67,6.50439126]
[1762164738454,0.65,175.71,175.67,6.50439126]
[1762164738650,19.64029389,175.7,175.67,6.50439126]
[1762164738855,11.56,175.7,175.67,6.50439126]
[1762164739875,11.56,175.7,175.67,5.83439126]
[1762164740080,11.56,175.7,175.67,6.50439126]
[1762164740860,4.90250319,175.69,175.64,0.14216157]
[1762164741059,0.65,175.69,175.64,0.14216157]
[1762164741266,8.73035065,175.68,175.64,0.81216157]
[1762164741467,0.65,175.68,175.64,0.81216157]
[1762164742283,8.08058945,175.67,175.63,5.69375289]
[1762164742459,19.64139853,175.66,175.62,5.69404828]
[1762164742660,11.56,175.65,175.62,5.69404828]
[1762164742877,11.56,175.64,175.63,6.36378807]
[1762164743194,11.56,175.64,175.63,5.69378807]
[1762164743879,11.56,175.64,175.61,0.67]
[1762164744066,11.56,175.64,175.62,0.14216157]
[1762164744261,11.56,175.64,175.61,5.69437486]
[1762164744676,11.56,175.64,175.61,8.4955892]
[1762164744988,11.56,175.64,175.61,9.1655892]
[1762164746560,11.56,175.64,175.62,0.7]
[1762164746862,0.69,175.68,175.64,5.83562547]
[1762164747183,19.64122173,175.67,175.63,5.69377233]
[1762164747361,8.08122173,175.66,175.63,5.69377233]
[1762164747557,0.69,175.66,175.63,5.69377233]
[1762164749091,11.56,175.65,175.63,5.69377233]
[1762164749683,0.69,175.66,175.62,5.69410288]
[1762164749883,20.33271498,175.65,175.62,5.69410288]
[1762164750068,11.56,175.64,175.62,5.69410288]
[1762164750888,0.69,175.63,175.59,2.94337591]
[1762164751100,0.69,175.63,175.59,8.49625344]
[1762164751682,0.69,175.63,175.59,9.19625344]
[1762164752389,4.25444107,175.62,175.57,3.00121434]
[1762164752572,8.08350474,175.61,175.57,0.34216157]
[1762164752778,6.3839237,175.63,175.57,0.34216157]
[1762164752779,12.25,175.6,175.57,0.34216157]
[1762164752975,11.56,175.6,175.59,2.80121434]
[1762164753180,11.56,175.6,175.58,3.50121434]
[1762164753376,12.25,175.6,175.57,3.00121434]
[1762164753685,11.56,175.6,175.58,2.80121434]
[1762164754086,12.25,175.6,175.58,2.80121434]
[1762164754286,0.69,175.59,175.57,0.2]
[1762164754789,21.282,175.64,175.58,3.50121434]
[1762164754990,20.3306695,175.63,175.6,2.80121434]
[1762164755191,8.0806695,175.62,175.6,2.80121434]
[1762164755393,12.25,175.63,175.6,2.80121434]
[1762164755394,8.0806695,175.61,175.6,2.80121434]
[1762164756087,8.0806695,175.61,175.58,0.7]
[1762164756296,3.82562028,175.62,175.6,2.80121434]
[1762164756480,3.82562028,175.62,175.61,2.80121434]
[1762164756675,11.58,175.62,175.6,2.80121434]
[1762164757689,4.25011164,175.61,175.58,5.83757106]
[1762164757985,12.27,175.62,175.59,2.80121434]
[1762164758192,11.58,175.61,175.59,2.80121434]
[1762164758368,11.58,175.61,175.59,8.49626652]
[1762164758673,11.58,175.61,175.59,5.69505218]
[1762164759392,11.58,175.61,175.58,0.7]
[1762164759592,11.58,175.61,175.58,3.50121434]
[1762164759888,11.58,175.61,175.57,8.83882503]
[1762164760090,12.27,175.61,175.57,9.53882503]
[1762164761000,12.27,175.61,175.57,6.73761069]
[1762164761500,12.27,175.61,175.58,2.80121434]
[1762164761700,0.69,175.6,175.57,6.03761069]
[1762164761908,8.0647118,175.59,175.57,0.2]
[1762164762067,8.7547118,175.58,175.51,5.69768104]
[1762164762272,40.2567118,175.57,175.5,0.7]
[1762164762496,5.69638279,175.55,175.5,6.39793782]
[1762164762872,0.69,175.54,175.5,6.39793782]
[1762164763072,11.6,175.53,175.49,3.00121434]
[1762164763282,11.6,175.53,175.49,0.9]
[1762164763469,0.69,175.52,175.49,0.2]
[1762164766899,6.38756413,175.52,175.49,0.2]
[1762164767286,0.69,175.51,175.49,0.2]
[1762164768697,6.38781027,175.51,175.49,0.2]
[1762164768905,0.69,175.51,175.49,0.2]
[1762164769390,11.6,175.5,175.49,0.2]
[1762164772899,11.6,175.5,175.49,0.9]
[1762164773102,11.6,175.5,175.49,6.59832486]
[1762164773806,11.6,175.5,175.49,0.2]
[1762164775705,6.38703447,175.53,175.49,0.2]
[1762164776006,0.69,175.52,175.49,0.2]
[1762164776206,11.58,175.51,175.49,5.89832304]
[1762164776397,11.58,175.51,175.49,6.59832304]
[1762164776597,11.58,175.51,175.49,9.39953738]
[1762164776809,55.76,175.55,175.5,3.47121434]
[1762164777100,11.58,175.54,175.51,2.80121434]
[1762164777301,11.58,175.54,175.52,2.80121434]
[1762164777501,0.66,175.57,175.53,2.80121434]
[1762164777702,11.58,175.56,175.54,2.80121434]
[1762164778203,12.24,175.56,175.54,2.80121434]
[1762164778698,11.58,175.55,175.54,2.80121434]
[1762164779201,25.64,175.61,175.54,9.16792164]
[1762164779409,12.24,175.6,175.57,2.80121434]
[1762164779994,0.66,175.6,175.57,2.80121434]
[1762164780191,11.58,175.59,175.56,8.49727063]
[1762164780511,11.58,175.59,175.55,2.80121434]
[1762164780692,0.66,175.58,175.53,0.14216157]
[1762164781096,0.66,175.58,175.53,0.81216157]
[1762164781309,0.66,175.58,175.53,9.31025621]
[1762164781491,25.64,175.61,175.57,2.80121434]
[1762164781796,11.6,175.6,175.58,2.80121434]
[1762164782000,11.6,175.6,175.57,3.47121434]
[1762164782204,11.6,175.6,175.58,2.80121434]
[1762164783204,11.6,175.6,175.57,3.47121434]
[1762164783503,11.6,175.6,175.57,9.16687703]
[1762164783713,11.6,175.6,175.58,2.80121434]
[1762164783906,11.6,175.6,175.57,2.80121434]
[1762164784107,8.69106354,175.59,175.52,2.80121434]
[1762164784292,9.92359899,175.58,175.52,2.80121434]
[1762164784485,12.26,175.57,175.51,9.16885965]
[1762164784815,12.26,175.57,175.51,0.67]
[1762164784998,0.66,175.56,175.51,0.67]
[1762164785606,6.3563361,175.56,175.51,0.67]
[1762164786000,6.3563361,175.56,175.51,3.47121434]
[1762164786205,0.66,175.55,175.51,3.47121434]
[1762164786406,11.6,175.54,175.51,0.67]
[1762164786790,11.6,175.54,175.51,9.1688452]
[1762164788389,11.6,175.54,175.51,8.16422898]
[1762164789199,11.6,175.54,175.51,7.49422898]
[1762164789514,11.6,175.54,175.51,8.16422898]
[1762164790713,11.6,175.54,175.51,0.67]
[1762164791208,12.26,175.54,175.5,7.49432034]
[1762164791516,0.66,175.53,175.49,6.04039773]
[1762164791721,0.66,175.53,175.49,2.13875969]
[1762164792016,0.66,175.53,175.49,0.2]
[1762164792430,10.16603324,175.53,175.49,0.2]
[1762164792806,0.66,175.52,175.49,0.2]
[1762164793003,11.58,175.51,175.49,0.2]
[1762164793517,11.58,175.51,175.5,1.79659812]
[1762164793820,11.58,175.51,175.5,2.46659812]
[1762164795021,11.58,175.51,175.5,1.79659812]
[1762164795403,55.1,175.57,175.51,0.14216157]
[1762164795599,19.64724437,175.56,175.54,1.79659812]
[1762164795805,11.6,175.56,175.54,1.79659812]
[1762164796006,0.66,175.55,175.49,0.2]
[1762164796195,8.04695414,175.54,175.49,0.2]
[1762164796399,19.64695414,175.53,175.5,1.79659812]
[1762164796617,11.6,175.52,175.51,1.79659812]
[1762164797009,11.6,175.52,175.5,1.79659812]
[1762164798013,11.6,175.52,175.5,2.46659812]
[1762164798319,11.6,175.52,175.49,5.89826859]
[1762164798522,11.6,175.52,175.51,1.79659812]
[1762164800627,11.6,175.52,175.51,1.7968461]
[1762164803515,55.1,175.55,175.51,8.16452714]
[1762164803830,11.6,175.54,175.52,0.67]
[1762164804328,9.33133308,175.6,175.53,0.14216157]
[1762164804510,19.66916717,175.59,175.53,0.14216157]
[1762164804701,8.06916717,175.58,175.54,0.67]
[1762164805007,8.06916717,175.57,175.54,0.67]
[1762164805221,11.6,175.56,175.54,6.36666534]
[1762164805407,11.6,175.55,175.54,6.50882691]
[1762164806023,11.6,175.55,175.54,8.30567301]
[1762164806509,11.6,175.55,175.51,0.71]
[1762164806709,8.7425324,175.54,175.53,1.7968461]
[1762164808501,8.0725324,175.54,175.53,1.7968461]
[1762164808707,3.82372026,175.54,175.53,8.20387794]
[1762164808902,11.6,175.54,175.53,8.20387794]
[1762164809212,11.6,175.54,175.53,7.49387794]
[1762164809932,11.6,175.54,175.53,8.20387794]
[1762164810530,55.1,175.59,175.53,8.20387794]
[1762164810739,19.6758972,175.58,175.56,1.7968461]
[1762164811039,8.0758972,175.57,175.56,1.7968461]
[1762164811522,8.0758972,175.57,175.54,0.71]
[1762164811824,11.6,175.58,175.56,1.7968461]
[1762164812124,8.07435135,175.57,175.56,1.7968461]
[1762164812327,8.74435135,175.57,175.53,5.69703184]
[1762164812630,8.07435135,175.56,175.53,7.49387794]
[1762164812815,19.67435135,175.55,175.52,1.7968461]
[1762164813014,11.6,175.55,175.52,2.5068461]
[1762164813217,11.6,175.55,175.52,1.7968461]
[1762164813417,3.82485975,175.54,175.53,1.7968461]
[1762164813641,8.07465355,175.54,175.52,1.7968461]
[1762164813812,12.27,175.55,175.52,1.7968461]
[1762164814026,8.74450324,175.54,175.52,1.7968461]
[1762164814228,0.67,175.54,175.52,1.7968461]
[1762164815129,11.6,175.55,175.52,1.7968461]
[1762164815320,8.07568783,175.54,175.52,1.7968461]
[1762164815520,11.6,175.55,175.52,1.7968461]
[1762164815721,3.8255732,175.54,175.52,1.7968461]
[1762164816021,11.6,175.55,175.52,1.7968461]
[1762164816220,8.07659658,175.54,175.52,1.7968461]
[1762164816423,11.6,175.55,175.53,1.7968461]
[1762164816730,8.07741357,175.54,175.52,1.7968461]
[1762164816940,11.6,175.55,175.52,2.5068461]
[1762164817123,8.07740674,175.54,175.52,2.5068461]
[1762164817316,11.6,175.55,175.52,1.7968461]
[1762164817523,8.07826237,175.54,175.52,1.7968461]
[1762164817729,17.9663941,175.55,175.52,1.7968461]
[1762164817906,8.07715704,175.54,175.52,1.7968461]
[1762164818108,17.9663941,175.55,175.52,1.7968461]
[1762164818324,8.07715696,175.54,175.52,1.7968461]
[1762164818532,4.25127145,175.53,175.52,1.7968461]
[1762164818837,8.07751921,175.53,175.52,1.7968461]
[1762164819026,4.25127145,175.53,175.52,1.7968461]
[1762164819418,4.25127145,175.53,175.52,8.20420252]
[1762164820139,4.25127145,175.53,175.52,6.40735642]
[1762164820436,4.25127145,175.53,175.49,0.34216157]
[1762164820633,11.58,175.52,175.5,1.7968461]
[1762164820818,11.58,175.51,175.5,7.63701336]
[1762164821739,11.58,175.51,175.5,8.34701336]
[1762164822343,11.58,175.51,175.5,6.55016726]
[1762164822518,11.58,175.51,175.5,8.34701336]
[1762164823020,11.58,175.51,175.5,7.63701336]
[1762164823340,11.58,175.51,175.5,8.34701336]
[1762164823512,11.58,175.51,175.5,7.63701336]
[1762164824109,11.58,175.51,175.5,8.34701336]
[1762164826742,55.1,175.57,175.51,0.14216157]
[1762164827046,19.66280188,175.56,175.53,0.14216157]
[1762164827246,4.25426478,175.55,175.53,0.14216157]
[1762164827541,11.58,175.56,175.54,0.71]
[1762164827839,4.25553566,175.55,175.54,0.85216157]
[1762164828023,4.25553566,175.55,175.52,0.71]
[1762164828231,4.2563444,175.54,175.52,1.7968461]
[1762164828542,0.67,175.55,175.52,1.7968461]
[1762164828741,19.666882,175.54,175.51,7.49425266]
[1762164829042,8.086882,175.53,175.51,1.7968461]
[1762164829254,4.25639431,175.52,175.5,7.49479741]
[1762164829537,11.58,175.51,175.5,7.63695898]
[1762164829721,11.58,175.51,175.5,8.34695898]
[1762164830319,6.36606175,175.56,175.5,8.34695898]
[1762164830617,19.66642527,175.55,175.5,8.34695898]
[1762164830817,8.08642527,175.54,175.5,8.34695898]
[1762164831016,8.08642527,175.53,175.51,0.71]
[1762164831224,11.58,175.52,175.51,0.71]
[1762164831544,11.58,175.52,175.51,6.40768104]
[1762164831742,0.67,175.55,175.51,8.20452714]
[1762164832039,19.66647568,175.54,175.53,1.7968461]
[1762164832646,19.66647568,175.54,175.52,1.7968461]
[1762164832838,11.58,175.54,175.52,1.7968461]
[1762164833547,11.58,175.53,175.52,7.49420252]
[1762164834941,0.67,175.56,175.52,7.49420252]
[1762164835134,19.67058687,175.55,175.52,7.49420252]
[1762164835331,8.09058687,175.54,175.52,7.49420252]
[1762164835539,12.25,175.55,175.52,7.49420252]
[1762164835736,8.09057339,175.54,175.52,1.7968461]
[1762164835935,12.25,175.55,175.52,1.7968461]
[1762164836248,20.34057149,175.54,175.5,7.63675758]
[1762164836450,8.76057149,175.53,175.5,1.7968461]
[1762164836637,4.2583597,175.52,175.5,1.7968461]
[1762164836821,11.58,175.51,175.5,7.49485179]
[1762164837323,11.58,175.51,175.5,8.20485179]
[1762164838758,0.66,175.53,175.5,8.20485179]
[1762164838931,19.65592641,175.52,175.51,1.7968461]
[1762164841250,19.65592641,175.52,175.51,8.20452714]
[1762164841430,15.82105728,175.52,175.51,8.20452714]
[1762164841752,11.56,175.52,175.51,7.49452714]
[1762164843552,11.56,175.52,175.51,8.34668871]
[1762164846060,11.52221462,175.52,175.51,8.34668871]
[1762164846255,11.56,175.52,175.51,8.34668871]
[1762164847552,11.56,175.54,175.53,20.73416157]
[1762164847737,0.66,175.6,175.53,20.73416157]
[1762164847738,11.56,175.55,175.54,0.14216157]
[1762164847933,11.56,175.55,175.54,2.64900767]
[1762164848745,11.56,175.55,175.54,8.34571497]
[1762164850059,0.66,175.59,175.54,8.34571497]
[1762164850252,19.66783384,175.58,175.57,1.7968461]
[1762164850456,19.66783384,175.58,175.57,2.80546968]
[1762164851260,20.32783384,175.58,175.52,0.14216157]
[1762164851463,8.76783384,175.57,175.52,2.94763125]
[1762164851640,8.10783384,175.56,175.52,2.94763125]
[1762164851839,8.10783384,175.55,175.52,2.94763125]
[1762164852051,15.82717735,175.54,175.53,2.80546968]
[1762164852363,15.82717735,175.54,175.53,8.50250152]
[1762164853352,15.82717735,175.54,175.53,9.21250152]
[1762164853756,11.56,175.54,175.53,9.35466309]
[1762164854473,0.66,175.59,175.54,0.14216157]
[1762164854648,8.10472302,175.58,175.56,2.80546968]
[1762164854855,19.66472302,175.57,175.56,2.80546968]
[1762164855756,19.66472302,175.57,175.49,0.2]
[1762164855757,20.32472302,175.57,175.49,0.91]
[1762164855943,11.5701927,175.56,175.5,2.80546968]
[1762164856157,8.10472302,175.55,175.51,2.80546968]
[1762164856346,8.10472302,175.54,175.51,2.80546968]
[1762164856554,15.82559634,175.53,175.51,8.50312188]
[1762164856754,4.26559634,175.52,175.51,8.50312188]
[1762164857153,4.26559634,175.52,175.51,2.80546968]
[1762164858474,4.26559634,175.52,175.51,8.50315072]
[1762164860198,4.26559634,175.52,175.5,8.50347537]
[1762164860399,11.56,175.53,175.51,2.80546968]
[1762164860699,0.66,175.56,175.52,3.51546968]
[1762164860873,19.66115225,175.55,175.52,3.51546968]
[1762164861069,4.26377698,175.54,175.52,3.51546968]
[1762164861299,11.56,175.55,175.53,3.51546968]
[1762164861483,4.26387154,175.54,175.53,3.51546968]
[1762164862404,15.82387154,175.54,175.53,9.21250152]
[1762164862702,15.82387154,175.54,175.53,2.80546968]
[1762164863710,15.82387154,175.54,175.53,8.50250152]
[1762164864304,4.26387154,175.54,175.53,8.50250152]
[1762164864509,15.82387154,175.54,175.53,8.50250152]
[1762164864700,4.26387154,175.54,175.53,8.50250152]
[1762164864915,15.82387154,175.54,175.53,8.50250152]
[1762164865603,15.82387154,175.54,175.53,2.80546968]
[1762164865908,20.32050995,175.54,175.49,3.14763125]
[1762164866116,8.82050995,175.53,175.49,8.84595963]
[1762164866311,4.98387154,175.52,175.49,8.84595963]
[1762164866516,11.56,175.51,175.49,8.84595963]
[1762164867020,0.7,175.5,175.49,0.2]
[1762164867219,4.96187621,175.5,175.49,0.2]
[1762164867612,4.26187621,175.5,175.49,0.2]
[1762164867799,11.56,175.51,175.49,0.2]
[1762164868308,12.26,175.51,175.49,0.2]
[1762164868508,12.26,175.51,175.49,3.00546968]
[1762164868898,11.56,175.51,175.5,2.80546968]
[1762164869103,59.88493728,175.59,175.51,0.14216157]
[1762164869301,128.54,175.64,175.58,2.80546968]
[1762164869302,5.48493728,175.63,175.58,2.80546968]
[1762164869516,0.7,175.63,175.62,2.80546968]
[1762164869717,11.58,175.63,175.62,2.80546968]
[1762164870235,12.28,175.63,175.62,2.80546968]
[1762164870728,25.64,175.64,175.62,8.49951272]
[1762164870910,11.58,175.63,175.62,5.69404304]
[1762164871299,11.58,175.63,175.61,5.69440064]
[1762164872018,11.58,175.63,175.62,2.80546968]
[1762164874729,11.58,175.63,175.61,5.69440064]
[1762164874898,12.28,175.63,175.58,0.85216157]
[1762164875102,12.28,175.63,175.6,2.80546968]
[1762164875515,11.58,175.63,175.6,2.80546968]
[1762164875712,0.7,175.62,175.59,2.80546968]
[1762164877226,0.7,175.62,175.58,2.80546968]
[1762164878025,6.39412604,175.62,175.58,2.80546968]
[1762164878227,6.39412604,175.62,175.57,8.50114554]
[1762164878403,0.7,175.61,175.57,8.50114554]
[1762164878603,11.56,175.6,175.57,8.50116032]
[1762164879009,11.56,175.6,175.57,9.21116032]
[1762164882347,11.56,175.6,175.58,2.80546968]
[1762164883439,11.56,175.6,175.57,6.40569064]
[1762164883440,11.56,175.6,175.57,9.21116032]
[1762164884332,11.56,175.6,175.57,6.40569064]
[1762164884538,11.56,175.6,175.57,9.21116032]
[1762164885932,55.1,175.63,175.59,2.80546968]
[1762164886117,11.56,175.62,175.6,2.80546968]
[1762164887522,11.56,175.62,175.59,8.5004101]
[1762164887735,11.56,175.62,175.58,2.80546968]
[1762164887937,0.7,175.61,175.58,0.14216157]
[1762164888314,11.56,175.62,175.58,0.14216157]
[1762164888514,11.56,175.62,175.58,3.65763125]
[1762164888725,11.56,175.62,175.59,2.80546968]
[1762164889130,11.56,175.62,175.59,3.51546968]
[1762164889449,11.56,175.61,175.6,0.71]
[1762164889656,11.56,175.61,175.59,8.50045556]
[1762164889836,11.56,175.61,175.59,9.21045556]
[1762164890149,11.56,175.61,175.59,6.40498588]
[1762164891332,11.56,175.6,175.59,6.40498588]
[1762164891859,11.56,175.6,175.58,5.83755178]
[1762164892044,11.56,175.6,175.58,6.54755178]
[1762164892246,11.56,175.6,175.59,0.71]
[1762164892447,11.56,175.6,175.58,6.54755178]
[1762164892647,64.29932174,175.63,175.59,0.71]
[1762164892841,11.56,175.62,175.59,0.71]
[1762164893258,12.26,175.62,175.58,8.64302146]
[1762164893452,12.26,175.62,175.58,9.35302146]
[1762164893653,12.26,175.62,175.58,8.64302146]
[1762164893852,12.26,175.62,175.59,0.71]
[1762164894057,12.26,175.62,175.58,8.64302146]
[1762164894355,12.26,175.62,175.58,9.35302146]
[1762164894559,11.56,175.62,175.59,9.2105256]
[1762164895865,12.26,175.62,175.59,9.2105256]
[1762164896556,11.56,175.62,175.59,9.2105256]
[1762164897558,55.77,175.63,175.59,9.2105256]